[Event "Chess Festival Groningen 2023 | A"]
[Site "Groningen, Netherlands"]
[Date "2023.12.27"]
[Round "6.31"]
[White "Groenewoud, Joel"]
[Black "Bakija, Alan"]
[Result "0-1"]
[TimeControl "90min/40moves + 30min + 30sec/move"]
[WhiteElo "1997"]
[BlackElo "2010"]

1. e4 {[%clk 00:55:18]} e5 {[%clk 00:55:14]} 2. Nf3 {[%clk 00:55:18]} Nc6 3.
Bc4 {[%clk 00:55:18]} Bc5 {[%clk 00:55:14]} 4. b4 {[%clk 00:55:18]} Bxb4 {[%clk
00:55:14]} 5. c3 {[%clk 00:55:18]} Be7 {[%clk 00:55:14]} 6. d4 {[%clk
00:55:18]} Na5 {[%clk 00:55:14]} 7. Be2 {[%clk 00:55:18]} d6 {[%clk 00:55:14]}
8. dxe5 {[%clk 00:55:18]} dxe5 {[%clk 00:55:14]} 9. Qa4+ {[%clk 00:55:18]} c6
{[%clk 00:55:14]} 10. Nxe5 {[%clk 00:55:18]} Nf6 {[%clk 00:55:14]} 11. O-O
{[%clk 00:55:18]} b5 {[%clk 00:55:14]} 12. Qc2 {[%clk 00:55:18]} O-O {[%clk
00:55:14]} 13. Rd1 {[%clk 00:55:18]} Qb6 {[%clk 00:55:14]} 14. Bf4 {[%clk
00:55:18]} Re8 {[%clk 00:55:14]} 15. Nd2 {[%clk 00:55:18]} Bc5 {[%clk
00:55:14]} 16. Nd3 {[%clk 00:55:18]} Bf8 {[%clk 00:55:14]} 17. Bf3 {[%clk
00:55:18]} Bg4 {[%clk 00:55:14]} 18. e5 {[%clk 00:55:18]} Bxf3 {[%clk
00:55:14]} 19. Nxf3 {[%clk 00:55:18]} Nd5 {[%clk 00:55:14]} 20. Bg3 {[%clk
00:55:18]} Nc4 {[%clk 00:55:14]} 21. Re1 {[%clk 00:55:18]} g6 {[%clk 00:55:14]}
22. Nf4 {[%clk 00:55:18]} Nxf4 {[%clk 00:55:14]} 23. Bxf4 {[%clk 00:55:18]} Bg7
{[%clk 00:55:14]} 24. h4 {[%clk 00:55:18]} Qc5 {[%clk 00:55:14]} 25. Qe2 {[%clk
00:55:18]} h5 {[%clk 00:55:14]} 26. Rad1 {[%clk 00:55:18]} Re7 {[%clk
00:55:14]} 27. Rd4 {[%clk 00:55:18]} Rae8 {[%clk 00:55:14]} 28. Qd3 {[%clk
00:55:18]} Nxe5 {[%clk 00:55:14]} 29. Nxe5 {[%clk 00:55:18]} Bxe5 {[%clk
00:55:14]} 30. Rde4 {[%clk 00:55:18]} Re6 {[%clk 00:55:14]} 31. Bd2 {[%clk
00:55:18]} Qd5 {[%clk 00:55:14]} 32. Qxd5 {[%clk 00:55:18]} cxd5 {[%clk
00:55:14]} 33. R4e3 {[%clk 00:55:18]} Bc7 {[%clk 00:55:14]} 34. Rd1 {[%clk
00:55:18]} Bb6 {[%clk 00:55:14]} 35. Rd3 {[%clk 00:55:18]} Re2 {[%clk
00:55:14]} 36. Be3 {[%clk 00:55:18]} Bxe3 {[%clk 00:55:14]} 37. Rxe3 {[%clk
00:55:18]} R8xe3 {[%clk 00:55:14]} 38. fxe3 {[%clk 00:55:18]} Rxa2 {[%clk
00:55:14]} 39. Rxd5 {[%clk 00:55:18]} a6 {[%clk 00:55:14]} 40. Rd6 {[%clk
00:55:18]} a5 {[%clk 00:55:14]} 41. Rb6 {[%clk 00:55:18]} Rb2 {[%clk 00:55:14]}
42. Ra6 {[%clk 00:55:18]} a4 {[%clk 00:55:14]} 43. Ra5 {[%clk 00:55:18]} Kg7
{[%clk 00:55:14]} 44. c4 {[%clk 00:55:18]} bxc4 {[%clk 00:55:14]} 45. Rxa4
{[%clk 00:55:18]} c3 {[%clk 00:55:14]} 46. Rc4 {[%clk 00:55:18]} c2 {[%clk
00:55:14]} 47. Kh2 {[%clk 00:55:18]} Kf6 {[%clk 00:55:14]} 48. Kg3 {[%clk
00:55:18]} Ke5 {[%clk 00:55:14]} 49. Kf3 {[%clk 00:55:18]} Kd5 {[%clk
00:55:14]} 50. Rc8 {[%clk 00:55:18]} f6 {[%clk 00:55:14]} 51. Rc3 {[%clk
00:55:18]} g5 {[%clk 00:55:14]} 52. hxg5 {[%clk 00:55:18]} fxg5 {[%clk
00:55:14]} 53. Kg3 {[%clk 00:55:18]} h4+ {[%clk 00:55:14]} 54. Kh3 {[%clk
00:55:18]} Ke4 {[%clk 00:55:14]} 55. Kg4 {[%clk 00:55:18]} c1=Q {[%clk
00:55:14]} 56. Rxc1 {[%clk 00:55:18]} Rxg2 {[%clk 00:55:14]} 57. Kh3 {[%clk
00:55:18]} Rg3+ {[%clk 00:55:14]} 58. Kh2 {[%clk 00:55:18]} Rxe3 {[%clk
00:55:14]} 0-1

[Event "Chess Festival Groningen 2023 | A"]
[Site "Groningen, Netherlands"]
[Date "2023.12.27"]
[Round "6.32"]
[White "Spit, Vincent"]
[Black "Krasenkowa, Elena"]
[Result "1-0"]
[TimeControl "90min/40moves + 30min + 30sec/move"]
[WhiteElo "2076"]
[BlackElo "2109"]

1. e4 g6 {[%clk 00:00:00]} 2. d4 Bg7 {[%clk 00:00:00]} 3. Nc3 c6 {[%clk
00:00:00]} 4. h4 Nf6 {[%clk 00:00:00]} 5. e5 Nd5 {[%clk 00:00:00]} 6. Nxd5 cxd5
{[%clk 00:00:00]} 7. h5 d6 {[%clk 00:00:00]} 8. h6 Bf8 {[%clk 00:00:00]} 9. Nf3
Bg4 {[%clk 00:00:00]} 10. Bb5+ Nc6 {[%clk 00:00:00]} 11. O-O dxe5 {[%clk
00:00:00]} 12. dxe5 e6 {[%clk 00:00:00]} 13. c4 a6 {[%clk 00:00:00]} 14. Bxc6+
bxc6 {[%clk 00:00:00]} 15. Qa4 Qd7 {[%clk 00:00:00]} 16. cxd5 exd5 {[%clk
00:00:00]} 17. Nh2 Be6 {[%clk 00:00:00]} 18. Bg5 c5 {[%clk 00:00:00]} 19. Qh4
Rb8 {[%clk 00:00:00]} 20. a3 c4 {[%clk 00:00:00]} 21. Bf6 Be7 {[%clk 00:00:00]}
22. Nf3 Rb7 {[%clk 00:00:00]} 23. Nd4 Rg8 {[%clk 00:00:00]} 24. Rab1 g5 {[%clk
00:00:00]} 25. Qg3 Bc5 {[%clk 00:00:00]} 26. Nxe6 Qxe6 {[%clk 00:00:00]} 27. b3
Qf5 {[%clk 00:00:00]} 28. Rbd1 d4 {[%clk 00:00:00]} 29. bxc4 Rg6 {[%clk
00:00:00]} 30. Rd3 Rxh6 {[%clk 00:00:00]} 31. Rb3 Qe4 {[%clk 00:00:00]} 32.
Rxb7 Qxb7 {[%clk 00:00:00]} 33. Qd3 g4 {[%clk 00:00:00]} 34. Rb1 Qc7 {[%clk
00:00:00]} 35. Qe4 Bb6 {[%clk 00:00:00]} 36. Qa8+ Kd7 {[%clk 00:00:00]} 37.
Qxa6 g3 {[%clk 00:00:00]} 38. fxg3 Bc5 {[%clk 00:00:00]} 39. Qa4+ Ke6 {[%clk
00:00:00]} 40. Qe8+ Kf5 {[%clk 00:00:00]} 41. Rf1+ Ke4 {[%clk 00:00:00]} 42.
Qa8+ Kd3 {[%clk 00:00:00]} 43. Qa4 Qb6 {[%clk 00:00:00]} 44. Qd1+ Kxc4 {[%clk
00:00:00]} 45. Qc1+ Kd5 {[%clk 00:00:00]} 46. Qxh6 d3+ {[%clk 00:00:00]} 47.
Kh2 Be3 {[%clk 00:00:00]} 48. Qxh7 d2 {[%clk 00:00:00]} 49. Qxf7+ Kd4 {[%clk
00:00:00]} 50. e6+ Kd3 {[%clk 00:00:00]} 51. e7 Ke2 {[%clk 00:00:00]} 52. Qc4#
1-0

[Event "Chess Festival Groningen 2023 | A"]
[Site "Groningen, Netherlands"]
[Date "2023.12.28"]
[Round "7.1"]
[White "Kazakouski, Valery"]
[Black "Panda, Sambit"]
[Result "1-0"]
[TimeControl "90min/40moves + 30min + 30sec/move"]
[BlackFideId "25091794"]
[WhiteElo "2586"]
[BlackElo "2404"]

1. d4 {[%clk 01:30:31]} {[%emt 00:00:28]} d5 {[%clk 01:30:26]} {[%emt
00:00:35]} 2. c4 {[%clk 01:30:47]} {[%emt 00:00:14]} e6 {[%clk 01:30:52]}
{[%emt 00:00:04]} 3. Nc3 {[%clk 01:31:10]} {[%emt 00:00:07]} Nf6 {[%clk
01:31:16]} {[%emt 00:00:06]} 4. Nf3 {[%clk 01:30:59]} {[%emt 00:00:41]} h6
{[%clk 01:27:17]} {[%emt 00:04:30]} 5. g3 {[%clk 01:30:56]} {[%emt 00:00:32]}
Nc6 {[%clk 01:27:42]} {[%emt 00:00:06]} 6. Bg2 {[%clk 01:29:38]} {[%emt
00:01:47]} Bd6 {[%clk 01:28:06]} {[%emt 00:00:06]} 7. O-O {[%clk 01:21:33]}
{[%emt 00:08:35]} O-O {[%clk 01:27:33]} {[%emt 00:01:04]} 8. a3 {[%clk
01:11:18]} {[%emt 00:10:45]} a5 {[%clk 01:20:04]} {[%emt 00:08:00]} 9. b3
{[%clk 01:07:59]} {[%emt 00:03:48]} Re8 {[%clk 01:14:46]} {[%emt 00:05:48]} 10.
Bb2 {[%clk 01:05:49]} {[%emt 00:02:40]} dxc4 {[%clk 00:44:35]} {[%emt
00:30:41]} 11. bxc4 {[%clk 01:04:44]} {[%emt 00:01:34]} e5 {[%clk 00:44:49]}
{[%emt 00:00:16]} 12. e3 {[%clk 00:52:08]} {[%emt 00:13:05]} exd4 {[%clk
00:34:50]} {[%emt 00:10:30]} 13. exd4 {[%clk 00:51:56]} {[%emt 00:00:42]} Bg4
{[%clk 00:34:13]} {[%emt 00:01:07]} 14. h3 {[%clk 00:47:26]} {[%emt 00:05:00]}
Bh5 {[%clk 00:34:34]} {[%emt 00:00:10]} 15. Nb5 {[%clk 00:41:01]} {[%emt
00:06:53]} Ne4 {[%clk 00:26:23]} {[%emt 00:08:42]} 16. Qc2 {[%clk 00:37:02]}
{[%emt 00:04:28]} Bg6 {[%clk 00:22:20]} {[%emt 00:04:34]} 17. Qa4 {[%clk
00:37:06]} {[%emt 00:00:26]} Ng5 {[%clk 00:15:26]} {[%emt 00:07:24]} 18. Nxg5
{[%clk 00:31:19]} {[%emt 00:06:17]} Qxg5 {[%clk 00:11:59]} {[%emt 00:03:57]} 19.
Nxd6 {[%clk 00:27:36]} {[%emt 00:04:13]} cxd6 {[%clk 00:12:19]} {[%emt
00:00:11]} 20. d5 {[%clk 00:24:46]} {[%emt 00:03:20]} Ne7 {[%clk 00:11:29]}
{[%emt 00:01:20]} 21. Rfe1 {[%clk 00:23:40]} {[%emt 00:01:36]} Qd2 {[%clk
00:11:27]} {[%emt 00:00:33]} 22. Qb5 {[%clk 00:22:41]} {[%emt 00:01:27]} Bd3
{[%clk 00:08:00]} {[%emt 00:03:58]} 23. Rad1 {[%clk 00:21:22]} {[%emt
00:01:49]} Qc2 {[%clk 00:08:03]} {[%emt 00:00:27]} 24. Rc1 {[%clk 00:21:35]}
{[%emt 00:00:16]} Qd2 {[%clk 00:07:58]} {[%emt 00:00:35]} 25. Red1 {[%clk
00:21:45]} {[%emt 00:00:19]} Qe2 {[%clk 00:05:41]} {[%emt 00:02:47]} 26. Bf1
{[%clk 00:22:01]} {[%emt 00:00:14]} Bxc4 {[%clk 00:05:04]} {[%emt 00:01:07]} 27.
Bxe2 {[%clk 00:22:08]} {[%emt 00:00:24]} Bxb5 {[%clk 00:05:05]} {[%emt
00:00:30]} 28. Bxb5 {[%clk 00:22:31]} {[%emt 00:00:07]} Rec8 {[%clk 00:05:32]}
{[%emt 00:00:02]} 29. Rxc8+ {[%clk 00:21:46]} Rxc8 {[%clk 00:05:58]} {[%emt
00:01:18]} 30. a4 {[%clk 00:22:10]} {[%emt 00:00:07]} Rc5 {[%clk 00:06:08]}
{[%emt 00:00:20]} 31. Re1 {[%clk 00:22:31]} {[%emt 00:00:08]} Nf5 {[%clk
00:05:46]} {[%emt 00:00:53]} 32. Re8+ {[%clk 00:22:24]} {[%emt 00:00:37]} Kh7
{[%clk 00:06:11]} {[%emt 00:00:04]} 33. Bd3 {[%clk 00:22:38]} {[%emt 00:00:16]}
Rxd5 {[%clk 00:06:37]} {[%emt 00:00:04]} 34. Be4 {[%clk 00:23:01]} {[%emt
00:00:06]} 1-0

[Event "Chess Festival Groningen 2023 | A"]
[Site "Groningen, Netherlands"]
[Date "2023.12.28"]
[Round "7.2"]
[White "Tiviakov, Sergei"]
[Black "Romanov, Evgeny"]
[Result "1/2-1/2"]
[TimeControl "90min/40moves + 30min + 30sec/move"]
[WhiteElo "2536"]
[BlackElo "2561"]

1. e4 {[%clk 01:30:56]} {[%emt 00:00:03]} c5 {[%clk 01:29:44]} {[%emt
00:01:16]} 2. c3 {[%clk 01:31:19]} {[%emt 00:00:08]} d5 {[%clk 01:30:06]}
{[%emt 00:00:08]} 3. exd5 {[%clk 01:31:45]} {[%emt 00:00:05]} Qxd5 {[%clk
01:30:29]} {[%emt 00:00:06]} 4. d4 {[%clk 01:32:10]} {[%emt 00:00:05]} Nf6
{[%clk 01:30:37]} {[%emt 00:00:22]} 5. Nf3 {[%clk 01:32:34]} {[%emt 00:00:07]}
e6 {[%clk 01:30:59]} {[%emt 00:00:07]} 6. Na3 {[%clk 01:32:56]} {[%emt
00:00:08]} Qd8 {[%clk 01:31:20]} {[%emt 00:00:09]} 7. Nc4 {[%clk 01:32:53]}
{[%emt 00:00:34]} Nc6 {[%clk 01:31:16]} {[%emt 00:00:34]} 8. Nce5 {[%clk
01:32:59]} {[%emt 00:00:24]} Qc7 {[%clk 01:31:19]} {[%emt 00:00:27]} 9. Nxc6
{[%clk 01:15:51]} {[%emt 00:17:39]} bxc6 {[%clk 01:31:34]} {[%emt 00:00:15]} 10.
dxc5 {[%clk 01:15:22]} {[%emt 00:01:00]} Bxc5 {[%clk 01:30:16]} {[%emt
00:01:47]} 11. Bd3 {[%clk 01:15:19]} {[%emt 00:00:33]} h6 {[%clk 01:21:28]}
{[%emt 00:09:18]} 12. O-O {[%clk 01:15:08]} {[%emt 00:00:41]} O-O {[%clk
01:21:45]} {[%emt 00:00:13]} 13. Qe2 {[%clk 01:07:12]} {[%emt 00:08:27]} Bd6
{[%clk 01:21:37]} {[%emt 00:00:37]} 14. Re1 {[%clk 01:05:27]} {[%emt 00:02:15]}
Rd8 {[%clk 01:21:28]} {[%emt 00:00:39]} 15. h3 {[%clk 01:00:48]} {[%emt
00:05:10]} c5 {[%clk 01:18:16]} {[%emt 00:03:41]} 16. Nd2 {[%clk 00:57:19]}
{[%emt 00:03:59]} Bb7 {[%clk 01:16:57]} {[%emt 00:01:49]} 17. Ne4 {[%clk
00:50:09]} {[%emt 00:07:41]} Bxe4 {[%clk 01:09:31]} {[%emt 00:07:56]} 1/2-1/2

[Event "Chess Festival Groningen 2023 | A"]
[Site "Groningen, Netherlands"]
[Date "2023.12.28"]
[Round "7.3"]
[White "Aarav, Dengla"]
[Black "Reinderman, Dimitri"]
[Result "1/2-1/2"]
[TimeControl "90min/40moves + 30min + 30sec/move"]
[WhiteFideId "45059756"]
[WhiteElo "2382"]
[BlackElo "2580"]

1. e4 {[%clk 01:30:45]} {[%emt 00:00:14]} d6 {[%clk 01:30:55]} {[%emt
00:00:06]} 2. d4 {[%clk 01:30:38]} {[%emt 00:00:36]} Nf6 {[%clk 01:31:22]}
{[%emt 00:00:04]} 3. Nc3 {[%clk 01:30:42]} {[%emt 00:00:27]} e5 {[%clk
01:31:48]} {[%emt 00:00:04]} 4. dxe5 {[%clk 01:29:59]} {[%emt 00:01:13]} dxe5
{[%clk 01:32:14]} {[%emt 00:00:04]} 5. Qxd8+ {[%clk 01:30:13]} {[%emt
00:00:16]} Kxd8 {[%clk 01:32:40]} {[%emt 00:00:04]} 6. Bc4 {[%clk 01:29:52]}
{[%emt 00:00:52]} Ke8 {[%clk 01:32:51]} {[%emt 00:00:19]} 7. a3 {[%clk
01:11:00]} {[%emt 00:19:22]} Bd6 {[%clk 01:28:15]} {[%emt 00:05:06]} 8. Bg5
{[%clk 01:02:11]} {[%emt 00:09:18]} Nbd7 {[%clk 01:27:18]} {[%emt 00:01:27]} 9.
f3 {[%clk 00:57:15]} {[%emt 00:05:27]} h6 {[%clk 01:24:48]} {[%emt 00:03:00]}
10. Bxf6 {[%clk 00:57:15]} {[%emt 00:00:29]} Nxf6 {[%clk 01:24:49]} {[%emt
00:00:28]} 11. Nb5 {[%clk 00:57:40]} {[%emt 00:00:06]} Ke7 {[%clk 01:23:49]}
{[%emt 00:01:30]} 12. Ne2 {[%clk 00:50:23]} {[%emt 00:07:46]} a6 {[%clk
01:21:19]} {[%emt 00:03:01]} 13. Nxd6 {[%clk 00:50:44]} {[%emt 00:00:09]} cxd6
{[%clk 01:21:44]} {[%emt 00:00:05]} 14. Rd1 {[%clk 00:41:14]} {[%emt 00:10:00]}
b5 {[%clk 01:17:59]} {[%emt 00:04:15]} 15. Ba2 {[%clk 00:38:15]} {[%emt
00:03:30]} Be6 {[%clk 01:17:52]} {[%emt 00:00:37]} 16. Bxe6 {[%clk 00:37:22]}
fxe6 {[%clk 01:17:56]} {[%emt 00:01:48]} 17. Nc1 {[%clk 00:37:23]} {[%emt
00:00:29]} Rhc8 {[%clk 01:14:29]} {[%emt 00:03:57]} 18. c3 {[%clk 00:37:51]}
{[%emt 00:00:02]} a5 {[%clk 01:09:39]} {[%emt 00:05:20]} 19. Nd3 {[%clk
00:38:15]} {[%emt 00:00:06]} Nd7 {[%clk 01:09:45]} {[%emt 00:00:24]} 20. Ke2
{[%clk 00:36:56]} {[%emt 00:01:49]} Nc5 {[%clk 01:08:31]} {[%emt 00:01:44]} 21.
Nxc5 {[%clk 00:34:00]} {[%emt 00:03:26]} Rxc5 {[%clk 01:08:49]} {[%emt
00:00:12]} 22. Rd2 {[%clk 00:28:25]} {[%emt 00:06:05]} Rb8 {[%clk 01:00:17]}
{[%emt 00:09:02]} 23. Rhd1 {[%clk 00:26:20]} {[%emt 00:02:34]} Rb6 {[%clk
00:59:49]} {[%emt 00:00:58]} 24. Ra1 {[%emt 00:03:43]} Rc7 {[%clk 00:57:07]} 25.
Rad1 {[%clk 00:22:56]} {[%emt 00:03:54]} Rc8 {[%clk 00:47:32]} {[%emt
00:10:05]} 26. Ra1 {[%clk 00:22:49]} {[%emt 00:00:37]} Rc4 {[%clk 00:47:15]}
{[%emt 00:00:47]} 27. Ra2 {[%clk 00:20:39]} {[%emt 00:02:39]} Kd7 {[%clk
00:45:46]} {[%emt 00:02:00]} 28. Ra1 {[%clk 00:20:49]} {[%emt 00:00:21]} Kc7
{[%clk 00:45:46]} {[%emt 00:00:30]} 29. Kd3 {[%clk 00:20:13]} {[%emt 00:01:06]}
Rcc6 {[%clk 00:40:35]} {[%emt 00:05:41]} 30. g3 {[%clk 00:19:03]} {[%emt
00:01:40]} Rc5 {[%clk 00:37:19]} {[%emt 00:03:46]} 31. f4 {[%clk 00:16:12]}
{[%emt 00:03:20]} exf4 {[%clk 00:32:19]} {[%emt 00:05:30]} 32. gxf4 {[%clk
00:14:13]} {[%emt 00:02:30]} Rh5 {[%clk 00:32:11]} {[%emt 00:00:37]} 33. Rg2
{[%clk 00:13:34]} {[%emt 00:01:09]} g5 {[%clk 00:30:30]} {[%emt 00:02:11]} 34.
Rf1 {[%clk 00:10:35]} {[%emt 00:03:29]} Rb8 {[%clk 00:25:33]} {[%emt 00:05:29]}
35. fxg5 {[%clk 00:09:29]} {[%emt 00:01:34]} hxg5 {[%clk 00:25:51]} {[%emt
00:00:12]} 36. e5 {[%clk 00:09:16]} {[%emt 00:00:43]} Rbh8 {[%clk 00:23:46]}
{[%emt 00:02:34]} 37. Rf6 {[%clk 00:06:37]} {[%emt 00:03:09]} 1/2-1/2

[Event "Chess Festival Groningen 2023 | A"]
[Site "Groningen, Netherlands"]
[Date "2023.12.28"]
[Round "7.4"]
[White "Jin, Yueheng"]
[Black "Lahaye, Rick"]
[Result "1/2-1/2"]
[TimeControl "90min/40moves + 30min + 30sec/move"]
[WhiteElo "2398"]
[BlackElo "2439"]

1. d4 {[%clk 01:30:57]} {[%emt 00:00:02]} Nf6 {[%clk 01:30:50]} {[%emt
00:00:09]} 2. c4 {[%clk 01:31:24]} {[%emt 00:00:04]} g6 {[%clk 01:31:08]}
{[%emt 00:00:11]} 3. g3 {[%clk 01:31:43]} {[%emt 00:00:12]} Bg7 {[%clk
01:31:28]} {[%emt 00:00:10]} 4. Bg2 {[%clk 01:32:07]} {[%emt 00:00:06]} O-O
{[%clk 01:31:46]} {[%emt 00:00:11]} 5. Nf3 {[%clk 01:32:25]} {[%emt 00:00:13]}
d6 {[%clk 01:31:59]} {[%emt 00:00:17]} 6. Nc3 {[%clk 01:32:45]} {[%emt
00:00:11]} Nc6 {[%clk 01:31:59]} {[%emt 00:00:30]} 7. O-O {[%clk 01:32:24]}
{[%emt 00:00:50]} a6 {[%clk 01:31:56]} {[%emt 00:00:35]} 8. e4 {[%clk
01:31:59]} {[%emt 00:00:55]} Rb8 {[%clk 01:22:02]} {[%emt 00:10:23]} 9. Re1
{[%clk 01:15:46]} {[%emt 00:16:44]} Bg4 {[%clk 01:14:59]} {[%emt 00:07:33]} 10.
Be3 {[%clk 01:10:12]} {[%emt 00:06:05]} Nd7 {[%clk 01:08:28]} {[%emt 00:07:00]}
11. Qd2 {[%clk 01:02:47]} {[%emt 00:07:56]} Na5 {[%clk 00:55:11]} {[%emt
00:13:46]} 12. b3 {[%clk 01:02:45]} {[%emt 00:00:33]} c5 {[%clk 00:52:54]}
{[%emt 00:02:47]} 13. Ng5 {[%clk 00:55:33]} {[%emt 00:07:42]} h6 {[%clk
00:30:15]} {[%emt 00:23:09]} 14. h3 {[%clk 00:54:54]} {[%emt 00:01:09]} hxg5
{[%clk 00:28:42]} {[%emt 00:02:03]} 15. hxg4 {[%clk 00:55:20]} {[%emt
00:00:04]} cxd4 {[%clk 00:29:02]} {[%emt 00:00:10]} 16. Bxd4 {[%clk 00:55:47]}
{[%emt 00:00:04]} Bxd4 {[%clk 00:29:01]} {[%emt 00:00:31]} 17. Qxd4 {[%clk
00:56:12]} {[%emt 00:00:05]} Ne5 {[%clk 00:25:44]} {[%emt 00:03:46]} 18. Qd2
{[%clk 00:54:33]} {[%emt 00:02:08]} e6 {[%clk 00:23:34]} {[%emt 00:02:41]} 19.
Rad1 {[%clk 00:48:34]} {[%emt 00:06:28]} Qf6 {[%clk 00:23:59]} {[%emt
00:00:05]} 20. Qxd6 {[%clk 00:44:59]} {[%emt 00:04:06]} Nxg4 {[%clk 00:24:23]}
{[%emt 00:00:06]} 21. Qd4 {[%clk 00:45:22]} {[%emt 00:00:07]} Ne5 {[%clk
00:24:48]} {[%emt 00:00:05]} 22. Ne2 {[%clk 00:35:40]} {[%emt 00:10:12]} g4
{[%clk 00:24:41]} {[%emt 00:00:37]} 23. Qd2 {[%clk 00:33:30]} {[%emt 00:02:41]}
Nac6 {[%clk 00:24:46]} {[%emt 00:00:25]} 24. Qh6 {[%clk 00:32:07]} {[%emt
00:01:53]} Rfd8 {[%clk 00:24:42]} {[%emt 00:00:34]} 25. Rf1 {[%clk 00:13:55]}
{[%emt 00:18:42]} Rxd1 {[%clk 00:24:55]} {[%emt 00:00:16]} 26. Rxd1 {[%clk
00:14:19]} {[%emt 00:00:06]} Rd8 {[%clk 00:25:19]} {[%emt 00:00:06]} 27. Qc1
{[%clk 00:11:11]} {[%emt 00:03:38]} Nb4 {[%clk 00:22:15]} {[%emt 00:03:34]} 28.
a3 {[%clk 00:07:58]} {[%emt 00:03:44]} Rxd1+ {[%clk 00:22:01]} {[%emt
00:00:43]} 29. Qxd1 {[%clk 00:08:15]} {[%emt 00:00:13]} Nbd3 {[%clk 00:22:08]}
{[%emt 00:00:23]} 30. Qf1 {[%clk 00:06:45]} {[%emt 00:02:00]} Qg5 {[%clk
00:17:57]} {[%emt 00:04:41]} 31. Qd1 {[%clk 00:05:55]} {[%emt 00:01:20]} b6
{[%clk 00:17:46]} {[%emt 00:00:41]} 32. Nd4 {[%clk 00:03:34]} {[%emt 00:02:51]}
Qd8 {[%clk 00:17:34]} {[%emt 00:00:42]} 33. Nc2 {[%clk 00:03:35]} {[%emt
00:00:31]} Qf6 {[%clk 00:17:26]} {[%emt 00:00:37]} 34. Qd2 {[%clk 00:03:15]}
{[%emt 00:00:50]} Nc5 {[%clk 00:10:26]} {[%emt 00:07:30]} 35. b4 {[%clk
00:03:38]} {[%emt 00:00:07]} Ncd3 {[%clk 00:09:18]} {[%emt 00:01:38]} 36. Ne3
{[%clk 00:04:01]} {[%emt 00:00:08]} Qd8 {[%clk 00:08:21]} {[%emt 00:01:27]} 37.
Qc3 {[%clk 00:04:19]} {[%emt 00:00:11]} a5 {[%clk 00:04:35]} {[%emt 00:04:17]}
38. Kf1 {[%clk 00:02:12]} {[%emt 00:02:36]} axb4 {[%clk 00:04:12]} {[%emt
00:00:53]} 39. axb4 {[%clk 00:02:40]} {[%emt 00:00:02]} Qd6 {[%clk 00:04:18]}
{[%emt 00:00:23]} 40. Nc2 {[%clk 00:02:03]} {[%emt 00:01:07]} Nc6 {[%clk
00:02:51]} {[%emt 00:01:57]} 41. Qd2 {[%clk 00:00:36]} {[%emt 00:01:57]} Nce5
{[%clk 00:02:34]} {[%emt 00:00:47]} 42. Ke2 {[%clk 00:26:50]} {[%emt 00:04:16]}
Qe7 {[%clk 00:28:32]} {[%emt 00:04:32]} 43. Qc3 {[%clk 00:23:26]} {[%emt
00:03:54]} Qa7 {[%clk 00:28:13]} {[%emt 00:00:49]} 44. Bf1 {[%clk 00:19:45]}
{[%emt 00:04:11]} Qa2 {[%clk 00:19:35]} {[%emt 00:09:08]} 45. Kd2 {[%clk
00:14:34]} {[%emt 00:05:41]} Qb1 {[%clk 00:19:22]} {[%emt 00:00:43]} 46. Qa1
{[%clk 00:06:44]} {[%emt 00:08:20]} Qxa1 {[%clk 00:14:25]} {[%emt 00:05:27]} 47.
Nxa1 {[%clk 00:07:11]} {[%emt 00:00:03]} Nxb4 {[%clk 00:14:15]} {[%emt
00:00:41]} 48. Nb3 {[%clk 00:05:25]} {[%emt 00:02:16]} Na6 {[%clk 00:13:53]}
{[%emt 00:00:51]} 49. Ke3 {[%clk 00:04:51]} {[%emt 00:01:04]} Nc5 {[%clk
00:13:35]} {[%emt 00:00:48]} 50. Nd2 {[%clk 00:03:17]} {[%emt 00:02:04]} Kf8
{[%clk 00:10:49]} {[%emt 00:03:16]} 51. Be2 {[%clk 00:03:44]} {[%emt 00:00:03]}
Ke7 {[%clk 00:10:55]} {[%emt 00:00:24]} 52. Nf1 {[%clk 00:03:50]} {[%emt
00:00:24]} f5 {[%clk 00:09:47]} {[%emt 00:01:38]} 53. Nd2 {[%clk 00:03:38]}
{[%emt 00:00:42]} Kf6 {[%clk 00:09:35]} {[%emt 00:00:42]} 54. exf5 {[%clk
00:03:42]} {[%emt 00:00:26]} gxf5 {[%clk 00:09:29]} {[%emt 00:00:35]} 55. Bf1
{[%clk 00:03:29]} {[%emt 00:00:43]} Ke7 {[%clk 00:08:41]} {[%emt 00:01:18]} 56.
Be2 {[%clk 00:02:32]} {[%emt 00:01:26]} Kd6 {[%clk 00:08:56]} {[%emt 00:00:15]}
57. Bf1 {[%clk 00:02:40]} {[%emt 00:00:22]} Na4 {[%clk 00:08:01]} {[%emt
00:01:25]} 58. Kd4 {[%clk 00:00:47]} {[%emt 00:02:24]} Nc6+ {[%clk 00:01:35]}
{[%emt 00:06:56]} 59. Ke3 {[%clk 00:01:14]} {[%emt 00:00:03]} Ne5 {[%clk
00:01:36]} {[%emt 00:00:29]} 60. Kd4 {[%clk 00:01:41]} {[%emt 00:00:03]} Nb2
{[%clk 00:02:00]} {[%emt 00:00:06]} 61. Be2 {[%clk 00:02:04]} {[%emt 00:00:07]}
Na4 {[%clk 00:02:21]} {[%emt 00:00:09]} 62. Bf1 {[%clk 00:00:30]} 1/2-1/2